[Event "Open NK Rapid 2025 bord 26-50"]
[Site "Helmond, Netherlands"]
[Date "2025.05.03"]
[Round "5.10"]
[White "Becx, Cesar"]
[Black "Vasylchenko, Maksym"]
[Result "0-1"]
[TimeControl "15 min +5 sec increment"]
[WhiteFideId "1001183"]
[BlackFideId "34150617"]
[WhiteElo "2075"]
[BlackElo "1853"]

1. f4 {[%clk 00:15:09]} d5 {[%clk 00:15:04]} {[%emt 00:00:07]} 2. Nf3 {[%clk
00:15:12]} {[%emt 00:00:02]} Nc6 {[%clk 00:15:02]} {[%emt 00:00:07]} 3. d4
{[%clk 00:15:14]} {[%emt 00:00:03]} Bg4 {[%clk 00:15:03]} {[%emt 00:00:04]} 4.
e3 {[%clk 00:15:17]} {[%emt 00:00:02]} Nf6 {[%clk 00:15:05]} {[%emt 00:00:03]}
5. c4 {[%clk 00:15:12]} {[%emt 00:00:09]} e6 {[%clk 00:15:04]} {[%emt
00:00:06]} 6. a3 {[%clk 00:15:08]} {[%emt 00:00:09]} Ne4 {[%clk 00:14:50]}
{[%emt 00:00:19]} 7. Be2 {[%clk 00:14:23]} {[%emt 00:00:50]} Bxf3 {[%clk
00:14:37]} {[%emt 00:00:18]} 8. Bxf3 {[%clk 00:14:27]} {[%emt 00:00:01]} Qh4+
{[%clk 00:14:40]} {[%emt 00:00:03]} 9. g3 {[%clk 00:14:27]} {[%emt 00:00:05]}
Qh3 {[%clk 00:13:57]} {[%emt 00:00:47]} 10. Bxe4 {[%clk 00:12:35]} {[%emt
00:01:57]} dxe4 {[%clk 00:14:01]} {[%emt 00:00:02]} 11. Qc2 {[%clk 00:12:36]}
{[%emt 00:00:04]} f5 {[%clk 00:14:00]} {[%emt 00:00:05]} 12. b4 {[%clk
00:12:26]} {[%emt 00:00:15]} h5 {[%clk 00:13:05]} {[%emt 00:01:01]} 13. Ra2
{[%clk 00:10:02]} {[%emt 00:02:29]} h4 {[%clk 00:12:37]} {[%emt 00:00:32]} 14.
Qg2 {[%clk 00:08:25]} {[%emt 00:01:42]} hxg3 {[%clk 00:12:26]} {[%emt
00:00:17]} 15. Qxh3 {[%clk 00:07:29]} {[%emt 00:01:01]} Rxh3 {[%clk 00:12:29]}
{[%emt 00:00:02]} 16. Kf1 {[%clk 00:06:57]} {[%emt 00:00:37]} Be7 {[%clk
00:12:00]} {[%emt 00:00:34]} 17. Kg2 {[%clk 00:06:53]} {[%emt 00:00:08]} Rxh2+
{[%clk 00:12:03]} {[%emt 00:00:02]} 18. Rxh2 {[%clk 00:06:57]} {[%emt
00:00:02]} gxh2 {[%clk 00:12:06]} {[%emt 00:00:01]} 19. Kxh2 {[%clk 00:06:58]}
{[%emt 00:00:04]} Kd7 {[%clk 00:11:57]} {[%emt 00:00:15]} 20. Bd2 {[%clk
00:05:51]} {[%emt 00:01:12]} Rh8+ {[%clk 00:11:29]} {[%emt 00:00:33]} 21. Kg2
{[%clk 00:05:53]} {[%emt 00:00:02]} g5 {[%clk 00:11:32]} {[%emt 00:00:02]} 22.
Nc3 {[%clk 00:03:24]} {[%emt 00:02:35]} Rh4 {[%clk 00:09:10]} {[%emt 00:02:28]}
23. d5 {[%clk 00:02:49]} {[%emt 00:00:40]} Nd8 {[%clk 00:07:15]} {[%emt
00:01:59]} 24. fxg5 {[%clk 00:01:03]} {[%emt 00:01:51]} Bxg5 {[%clk 00:07:06]}
{[%emt 00:00:14]} 25. Be1 {[%clk 00:00:30]} {[%emt 00:00:38]} Rg4+ {[%clk
00:07:04]} {[%emt 00:00:08]} 26. Kh3 {[%clk 00:00:29]} {[%emt 00:00:06]} Bxe3
{[%clk 00:06:48]} {[%emt 00:00:21]} 27. Bf2 {[%clk 00:00:18]} {[%emt 00:00:16]}
Bxf2 {[%clk 00:06:31]} {[%emt 00:00:21]} 28. Rxf2 {[%clk 00:00:22]} e3 {[%clk
00:06:34]} {[%emt 00:00:02]} 29. Re2 {[%clk 00:00:22]} {[%emt 00:00:05]} Rxc4
{[%clk 00:06:29]} {[%emt 00:00:09]} 30. Rxe3 {[%clk 00:00:18]} {[%emt
00:00:09]} e5 {[%clk 00:06:25]} {[%emt 00:00:10]} 31. Nb5 {[%clk 00:00:14]}
{[%emt 00:00:09]} a6 {[%clk 00:06:17]} {[%emt 00:00:13]} 32. Nc3 {[%clk
00:00:06]} {[%emt 00:00:13]} e4 {[%clk 00:06:21]} {[%emt 00:00:01]} 33. Kg3
{[%clk 00:00:09]} {[%emt 00:00:02]} Nf7 {[%clk 00:06:19]} {[%emt 00:00:06]} 34.
Kf4 {[%clk 00:00:14]} Nd6 {[%clk 00:06:24]} {[%emt 00:00:01]} 35. Ne2 {[%clk
00:00:14]} {[%emt 00:00:03]} Rc2 {[%clk 00:05:53]} {[%emt 00:00:35]} 36. Ng3
{[%clk 00:00:13]} {[%emt 00:00:07]} Rf2+ {[%clk 00:05:52]} {[%emt 00:00:06]} 37.
Kg5 {[%clk 00:00:12]} {[%emt 00:00:07]} f4 {[%clk 00:05:53]} {[%emt 00:00:03]}
0-1

[Event "Open NK Rapid 2025 bord 26-50"]
[Site "Helmond, Netherlands"]
[Date "2025.05.03"]
[Round "5.11"]
[White "Bakels, Anton"]
[Black "Kazi, Zidan"]
[Result "1-0"]
[TimeControl "15 min +5 sec increment"]
[WhiteFideId "1046187"]
[BlackFideId "40102300"]
[WhiteElo "2025"]
[BlackElo "1818"]

1. e4 {[%clk 00:14:58]} {[%emt 00:00:11]} e5 {[%clk 00:15:07]} {[%emt
00:00:04]} 2. d4 {[%clk 00:14:59]} {[%emt 00:00:04]} exd4 {[%clk 00:15:06]}
{[%emt 00:00:05]} 3. Qxd4 {[%clk 00:15:02]} {[%emt 00:00:02]} Nc6 {[%clk
00:15:07]} {[%emt 00:00:05]} 4. Qe3 {[%clk 00:15:05]} {[%emt 00:00:01]} b6
{[%clk 00:15:08]} {[%emt 00:00:05]} 5. Nc3 {[%clk 00:14:51]} {[%emt 00:00:19]}
Bb7 {[%clk 00:15:10]} {[%emt 00:00:02]} 6. Bc4 {[%clk 00:14:44]} {[%emt
00:00:12]} Bc5 {[%clk 00:15:10]} {[%emt 00:00:05]} 7. Qg3 {[%clk 00:14:12]}
{[%emt 00:00:37]} Qf6 {[%clk 00:14:25]} {[%emt 00:00:50]} 8. Nd5 {[%clk
00:14:09]} {[%emt 00:00:09]} Qd4 {[%clk 00:13:30]} {[%emt 00:00:57]} 9. Nxc7+
{[%clk 00:13:33]} {[%emt 00:00:43]} Kd8 {[%clk 00:13:23]} {[%emt 00:00:13]} 10.
Nxa8 {[%clk 00:13:20]} {[%emt 00:00:17]} Qxc4 {[%clk 00:13:16]} {[%emt
00:00:12]} 11. Qc7+ {[%clk 00:10:57]} {[%emt 00:02:28]} Ke7 {[%clk 00:13:07]}
{[%emt 00:00:13]} 12. Bg5+ {[%clk 00:09:54]} {[%emt 00:01:09]} f6 {[%clk
00:13:06]} {[%emt 00:00:06]} 13. O-O-O {[%clk 00:09:56]} {[%emt 00:00:03]} Nd4
{[%clk 00:12:00]} {[%emt 00:01:11]} 14. c3 {[%clk 00:09:43]} {[%emt 00:00:18]}
Qb5 {[%clk 00:09:37]} {[%emt 00:02:27]} 15. Qxb7 {[%clk 00:08:57]} {[%emt
00:00:52]} fxg5 {[%clk 00:08:27]} {[%emt 00:01:16]} 16. Nc7 {[%clk 00:08:40]}
{[%emt 00:00:23]} Qc4 {[%clk 00:07:28]} {[%emt 00:01:03]} 17. Nd5+ {[%clk
00:08:28]} {[%emt 00:00:17]} Ke6 {[%clk 00:07:07]} {[%emt 00:00:26]} 18. f4
{[%clk 00:08:15]} {[%emt 00:00:18]} Nb5 {[%clk 00:06:38]} {[%emt 00:00:34]} 19.
f5+ {[%clk 00:08:11]} {[%emt 00:00:08]} Ke5 {[%clk 00:06:19]} {[%emt 00:00:25]}
20. Nf3+ {[%clk 00:08:07]} {[%emt 00:00:10]} Kd6 {[%clk 00:06:15]} {[%emt
00:00:17]} 21. Nxb6+ {[%clk 00:07:56]} {[%emt 00:00:17]} Ke7 {[%clk 00:05:44]}
{[%emt 00:00:36]} 22. Qxd7+ {[%clk 00:07:43]} {[%emt 00:00:18]} Kf6 {[%clk
00:05:47]} {[%emt 00:00:03]} 23. e5# {[%clk 00:07:26]} {[%emt 00:00:10]} 1-0

[Event "Open NK Rapid 2025 bord 26-50"]
[Site "Helmond, Netherlands"]
[Date "2025.05.03"]
[Round "5.12"]
[White "Klein, Ron"]
[Black "Omnes, Tiago"]
[Result "1/2-1/2"]
[TimeControl "15 min +5 sec increment"]
[WhiteFideId "1014668"]
[BlackFideId "1091867"]
[WhiteElo "2014"]
[BlackElo "1813"]

1. d4 {[%clk 00:15:06]} {[%emt 00:00:04]} Nf6 {[%clk 00:14:58]} {[%emt
00:00:13]} 2. Nf3 {[%clk 00:15:08]} {[%emt 00:00:02]} g6 {[%clk 00:14:59]}
{[%emt 00:00:04]} 3. Bg5 {[%clk 00:15:10]} {[%emt 00:00:03]} Bg7 {[%clk
00:15:02]} {[%emt 00:00:02]} 4. e3 {[%clk 00:15:11]} {[%emt 00:00:04]} h6
{[%clk 00:15:05]} {[%emt 00:00:01]} 5. Bh4 {[%clk 00:15:15]} O-O {[%clk
00:15:06]} {[%emt 00:00:05]} 6. Be2 {[%clk 00:15:16]} {[%emt 00:00:04]} d6
{[%clk 00:15:06]} {[%emt 00:00:06]} 7. O-O {[%clk 00:15:16]} {[%emt 00:00:05]}
Nbd7 {[%clk 00:15:09]} 8. Nbd2 {[%clk 00:15:18]} {[%emt 00:00:03]} c5 {[%clk
00:15:06]} {[%emt 00:00:08]} 9. c3 {[%clk 00:15:17]} {[%emt 00:00:06]} cxd4
{[%clk 00:15:09]} {[%emt 00:00:02]} 10. exd4 {[%clk 00:15:20]} {[%emt
00:00:01]} Nb6 {[%clk 00:15:10]} {[%emt 00:00:04]} 11. a4 {[%clk 00:15:18]}
{[%emt 00:00:08]} Be6 {[%clk 00:14:56]} {[%emt 00:00:18]} 12. Re1 {[%clk
00:14:26]} {[%emt 00:00:57]} Rc8 {[%clk 00:14:54]} {[%emt 00:00:07]} 13. Bf1
{[%clk 00:14:07]} {[%emt 00:00:24]} Re8 {[%clk 00:14:36]} {[%emt 00:00:23]} 14.
Bb5 {[%clk 00:14:02]} {[%emt 00:00:11]} Bd7 {[%clk 00:14:09]} {[%emt 00:00:32]}
15. Qb3 {[%clk 00:13:52]} {[%emt 00:00:15]} a6 {[%clk 00:14:01]} {[%emt
00:00:13]} 16. Bxd7 {[%clk 00:13:38]} {[%emt 00:00:18]} Nbxd7 {[%clk 00:14:04]}
{[%emt 00:00:03]} 17. Qxb7 {[%clk 00:13:28]} {[%emt 00:00:15]} Rb8 {[%clk
00:13:53]} {[%emt 00:00:16]} 18. Qxa6 {[%clk 00:13:32]} {[%emt 00:00:02]} Rxb2
{[%clk 00:13:56]} 19. Qd3 {[%clk 00:13:20]} {[%emt 00:00:16]} Qc7 {[%clk
00:13:24]} {[%emt 00:00:37]} 20. Reb1 {[%clk 00:12:46]} {[%emt 00:00:39]} Reb8
{[%clk 00:13:15]} {[%emt 00:00:14]} 21. Rxb2 {[%clk 00:12:43]} {[%emt
00:00:10]} Rb7 {[%emt 00:00:02]} 22. Rb4 Rxb4 {[%clk 00:13:16]} 23. a5 {[%clk
00:12:37]} {[%emt 00:00:12]} Rb7 {[%clk 00:13:00]} {[%emt 00:00:20]} 24. a6
{[%clk 00:12:33]} {[%emt 00:00:10]} Ra7 {[%clk 00:13:05]} {[%emt 00:00:01]} 25.
Qc4 {[%clk 00:12:10]} {[%emt 00:00:27]} Qb6 {[%clk 00:12:47]} {[%emt 00:00:23]}
26. h3 {[%clk 00:10:29]} {[%emt 00:01:46]} e6 {[%clk 00:10:24]} {[%emt
00:02:28]} 27. Bg3 {[%clk 00:09:34]} {[%emt 00:01:00]} d5 {[%clk 00:10:03]}
{[%emt 00:00:26]} 28. Qc8+ {[%clk 00:08:40]} {[%emt 00:00:58]} Kh7 {[%clk
00:09:57]} {[%emt 00:00:10]} 29. Ne5 {[%clk 00:08:40]} {[%emt 00:00:07]} Nxe5
{[%clk 00:09:20]} {[%emt 00:00:42]} 30. Bxe5 {[%clk 00:08:35]} {[%emt
00:00:09]} Qb2 {[%clk 00:09:14]} {[%emt 00:00:12]} 31. Rb1 {[%clk 00:07:51]}
{[%emt 00:00:49]} Qa2 {[%clk 00:07:27]} {[%emt 00:01:52]} 32. Bxf6 {[%clk
00:07:19]} {[%emt 00:00:36]} Bxf6 {[%clk 00:07:22]} {[%emt 00:00:11]} 33. Rb7
{[%clk 00:07:00]} {[%emt 00:00:24]} Qxa6 {[%clk 00:07:11]} {[%emt 00:00:16]} 34.
Rxf7+ {[%clk 00:06:59]} {[%emt 00:00:06]} Bg7 {[%emt 00:01:25]} 35. Qf8 {[%clk
00:05:40]} Rxf7 {[%clk 00:07:16]} {[%emt 00:00:04]} 36. Qxf7 {[%clk 00:05:43]}
{[%emt 00:00:01]} Qa1+ {[%clk 00:07:18]} {[%emt 00:00:03]} 37. Kh2 {[%clk
00:05:42]} {[%emt 00:00:06]} Qxc3 {[%clk 00:07:17]} {[%emt 00:00:06]} 38. Nf3
{[%clk 00:05:43]} {[%emt 00:00:03]} Kh8 {[%clk 00:04:38]} {[%emt 00:02:44]} 39.
Qxg6 {[%clk 00:05:41]} {[%emt 00:00:07]} Qc7+ {[%clk 00:04:28]} {[%emt
00:00:15]} 40. g3 {[%clk 00:05:33]} {[%emt 00:00:14]} Qc3 {[%clk 00:03:49]}
{[%emt 00:00:44]} 41. Kg2 {[%clk 00:05:18]} {[%emt 00:00:20]} Qc6 {[%clk
00:03:07]} {[%emt 00:00:44]} 42. g4 {[%clk 00:05:07]} {[%emt 00:00:19]} Qd6
{[%clk 00:02:49]} {[%emt 00:00:22]} 43. g5 {[%clk 00:05:05]} {[%emt 00:00:08]}
Qf4 {[%clk 00:02:38]} {[%emt 00:00:16]} 44. gxh6 {[%clk 00:04:37]} {[%emt
00:00:33]} Qxh6 {[%clk 00:02:32]} {[%emt 00:00:11]} 45. Qe8+ {[%clk 00:04:30]}
{[%emt 00:00:12]} Kh7 {[%clk 00:02:28]} {[%emt 00:00:08]} 46. h4 {[%clk
00:04:14]} {[%emt 00:00:22]} Qg6+ {[%clk 00:01:38]} {[%emt 00:00:55]} 47. Ng5+
{[%clk 00:04:16]} {[%emt 00:00:03]} Kh6 {[%clk 00:01:41]} {[%emt 00:00:02]} 48.
Qxg6+ {[%clk 00:04:05]} {[%emt 00:00:15]} Kxg6 {[%clk 00:01:45]} {[%emt
00:00:02]} 49. Nxe6 {[%clk 00:04:06]} {[%emt 00:00:03]} Bf6 {[%clk 00:01:33]}
{[%emt 00:00:18]} 50. Nf4+ {[%clk 00:03:29]} {[%emt 00:00:42]} Kf5 {[%clk
00:01:32]} {[%emt 00:00:07]} 51. Nxd5 {[%clk 00:03:30]} {[%emt 00:00:03]} Bxh4
{[%clk 00:01:01]} {[%emt 00:00:35]} 52. Kf3 {[%clk 00:03:23]} {[%emt 00:00:12]}
Bxf2 {[%clk 00:00:54]} {[%emt 00:00:13]} 53. Ne7+ {[%clk 00:03:00]} {[%emt
00:00:28]} Ke6 {[%clk 00:00:55]} {[%emt 00:00:05]} 54. Kxf2 {[%clk 00:02:56]}
{[%emt 00:00:09]} Kxe7 {[%clk 00:00:58]} {[%emt 00:00:01]} 55. Ke3 {[%clk
00:02:57]} {[%emt 00:00:04]} Kd6 {[%clk 00:01:02]} {[%emt 00:00:01]} 56. Ke4
{[%emt 00:00:02]} 1/2-1/2

[Event "Open NK Rapid 2025 bord 26-50"]
[Site "Helmond, Netherlands"]
[Date "2025.05.03"]
[Round "5.13"]
[White "Ganeshram, Nirupa"]
[Black "Vogel, Jaap"]
[Result "0-1"]
[TimeControl "15 min +5 sec increment"]
[WhiteFideId "1083031"]
[BlackFideId "1000764"]
[WhiteElo "1679"]
[BlackElo "2006"]

1. e4 {[%clk 00:15:08]} {[%emt 00:00:02]} e6 {[%clk 00:15:10]} {[%emt
00:00:01]} 2. d4 {[%clk 00:15:11]} {[%emt 00:00:01]} d5 {[%clk 00:15:14]}
{[%emt 00:00:01]} 3. Nc3 {[%clk 00:15:14]} {[%emt 00:00:01]} Bb4 {[%clk
00:15:17]} {[%emt 00:00:02]} 4. e5 {[%clk 00:15:18]} {[%emt 00:00:01]} c5
{[%clk 00:14:57]} {[%emt 00:00:26]} 5. a3 {[%clk 00:15:21]} {[%emt 00:00:02]}
Bxc3+ {[%clk 00:15:00]} {[%emt 00:00:01]} 6. bxc3 {[%clk 00:15:25]} {[%emt
00:00:01]} Qa5 {[%clk 00:15:03]} {[%emt 00:00:02]} 7. Bd2 {[%clk 00:14:57]}
{[%emt 00:00:32]} Qa4 {[%clk 00:14:48]} {[%emt 00:00:20]} 8. Nf3 {[%clk
00:14:34]} {[%emt 00:00:27]} Ne7 {[%clk 00:14:35]} {[%emt 00:00:19]} 9. Be2
{[%clk 00:14:23]} {[%emt 00:00:15]} Nbc6 {[%clk 00:14:26]} {[%emt 00:00:15]} 10.
Be3 {[%clk 00:14:09]} {[%emt 00:00:19]} Nf5 {[%clk 00:14:15]} {[%emt 00:00:17]}
11. O-O {[%clk 00:13:56]} {[%emt 00:00:17]} h6 {[%clk 00:13:19]} {[%emt
00:01:01]} 12. Qd2 {[%clk 00:13:29]} {[%emt 00:00:31]} cxd4 {[%clk 00:10:53]}
{[%emt 00:02:32]} 13. cxd4 {[%clk 00:13:16]} {[%emt 00:00:18]} Na5 {[%clk
00:09:38]} {[%emt 00:01:20]} 14. Rfb1 {[%clk 00:12:08]} {[%emt 00:01:13]} Nc4
{[%clk 00:09:27]} {[%emt 00:00:16]} 15. Bxc4 {[%clk 00:12:06]} {[%emt
00:00:07]} Qxc4 {[%clk 00:09:31]} {[%emt 00:00:01]} 16. Rb4 {[%clk 00:12:01]}
{[%emt 00:00:10]} Qc7 {[%clk 00:09:26]} {[%emt 00:00:09]} 17. Rc1 {[%clk
00:11:47]} {[%emt 00:00:20]} a5 {[%clk 00:09:15]} {[%emt 00:00:16]} 18. Rb3
{[%clk 00:11:33]} {[%emt 00:00:19]} Bd7 {[%clk 00:09:16]} {[%emt 00:00:04]} 19.
Rcb1 {[%clk 00:11:14]} {[%emt 00:00:24]} b5 {[%clk 00:09:16]} {[%emt 00:00:06]}
20. Ne1 {[%clk 00:10:35]} {[%emt 00:00:43]} Rc8 {[%clk 00:09:04]} {[%emt
00:00:17]} 21. c3 {[%clk 00:09:45]} {[%emt 00:00:55]} a4 {[%clk 00:08:15]}
{[%emt 00:00:54]} 22. Rxb5 {[%clk 00:06:24]} {[%emt 00:03:26]} Bxb5 {[%clk
00:08:15]} {[%emt 00:00:05]} 23. Rxb5 {[%clk 00:06:27]} {[%emt 00:00:02]} O-O
{[%clk 00:08:10]} {[%emt 00:00:10]} 24. Rb4 {[%clk 00:02:47]} {[%emt 00:03:45]}
Qxc3 {[%clk 00:07:08]} {[%emt 00:01:07]} 25. Rxa4 {[%clk 00:02:12]} {[%emt
00:00:41]} Nxe3 {[%clk 00:07:05]} {[%emt 00:00:07]} 26. Qxe3 {[%clk 00:02:08]}
{[%emt 00:00:09]} Qa1 {[%clk 00:05:44]} {[%emt 00:01:26]} 27. Kf1 {[%clk
00:01:21]} {[%emt 00:00:51]} Rc3 {[%clk 00:05:46]} {[%emt 00:00:03]} 28. Qd2
{[%clk 00:01:09]} {[%emt 00:00:17]} Rxa3 {[%clk 00:05:41]} {[%emt 00:00:11]} 29.
Rxa3 {[%clk 00:01:10]} {[%emt 00:00:04]} Qxa3 {[%clk 00:05:45]} 30. g3 {[%clk
00:01:10]} {[%emt 00:00:06]} Rc8 {[%clk 00:05:19]} {[%emt 00:00:30]} 31. Kg2
{[%clk 00:01:09]} {[%emt 00:00:05]} Qc3 {[%clk 00:05:14]} {[%emt 00:00:11]} 32.
Qd1 {[%clk 00:00:54]} {[%emt 00:00:20]} Ra8 {[%clk 00:05:02]} {[%emt 00:00:17]}
33. Nf3 {[%clk 00:00:41]} {[%emt 00:00:18]} Ra1 {[%clk 00:05:00]} {[%emt
00:00:07]} 34. Qe2 {[%clk 00:00:42]} {[%emt 00:00:03]} Qc4 {[%clk 00:04:51]}
{[%emt 00:00:15]} 35. Qxc4 {[%clk 00:00:13]} {[%emt 00:00:34]} dxc4 {[%clk
00:04:55]} 36. Nd2 {[%clk 00:00:10]} {[%emt 00:00:08]} c3 {[%clk 00:04:37]}
{[%emt 00:00:23]} 37. Nb3 {[%emt 00:00:08]} Rb1 {[%clk 00:04:39]} {[%emt
00:00:01]} 38. Nc5 {[%clk 00:00:06]} {[%emt 00:00:09]} c2 {[%clk 00:04:41]}
{[%emt 00:00:02]} 39. Nd3 {[%clk 00:00:06]} {[%emt 00:00:05]} Rd1 {[%clk
00:04:39]} {[%emt 00:00:07]} 0-1

[Event "Open NK Rapid 2025 bord 26-50"]
[Site "Helmond, Netherlands"]
[Date "2025.05.03"]
[Round "5.14"]
[White "Jansz, Wilfred"]
[Black "Klute, Leon"]
[Result "1-0"]
[TimeControl "15 min +5 sec increment"]
[WhiteFideId "40107353"]
[BlackFideId "1096460"]
[WhiteElo "1996"]
[BlackElo "1761"]

1. e4 {[%clk 00:15:08]} {[%emt 00:00:01]} c5 {[%clk 00:15:09]} {[%emt
00:00:01]} 2. Nf3 {[%clk 00:15:11]} {[%emt 00:00:01]} d6 {[%clk 00:15:13]}
{[%emt 00:00:01]} 3. d4 {[%clk 00:15:15]} {[%emt 00:00:02]} cxd4 {[%clk
00:15:17]} {[%emt 00:00:02]} 4. Nxd4 {[%clk 00:15:18]} {[%emt 00:00:01]} Nf6
{[%clk 00:15:20]} {[%emt 00:00:01]} 5. Nc3 {[%clk 00:15:21]} {[%emt 00:00:02]}
a6 {[%clk 00:15:24]} {[%emt 00:00:01]} 6. Be3 {[%clk 00:15:23]} {[%emt
00:00:02]} Ng4 {[%clk 00:15:22]} {[%emt 00:00:08]} 7. Bg5 {[%clk 00:15:21]}
{[%emt 00:00:07]} h6 {[%clk 00:15:24]} {[%emt 00:00:03]} 8. Bh4 {[%clk
00:15:22]} {[%emt 00:00:03]} g5 {[%clk 00:15:27]} {[%emt 00:00:03]} 9. Bg3
{[%clk 00:15:21]} {[%emt 00:00:05]} Bg7 {[%clk 00:15:28]} {[%emt 00:00:05]} 10.
h3 {[%clk 00:14:14]} {[%emt 00:01:11]} Ne5 {[%clk 00:15:21]} {[%emt 00:00:12]}
11. Be2 {[%clk 00:13:30]} {[%emt 00:00:50]} Nbc6 {[%clk 00:15:02]} {[%emt
00:00:25]} 12. Nb3 {[%clk 00:12:37]} {[%emt 00:00:57]} b5 {[%clk 00:14:05]}
{[%emt 00:01:02]} 13. O-O {[%clk 00:12:21]} {[%emt 00:00:21]} Nc4 {[%clk
00:12:38]} {[%emt 00:01:32]} 14. Bxc4 {[%clk 00:09:07]} {[%emt 00:03:18]} bxc4
{[%clk 00:12:31]} {[%emt 00:00:12]} 15. Nd2 {[%clk 00:08:48]} {[%emt 00:00:24]}
Be6 {[%clk 00:10:53]} {[%emt 00:01:44]} 16. Qe2 {[%clk 00:08:35]} {[%emt
00:00:18]} Nd4 {[%clk 00:09:22]} {[%emt 00:01:35]} 17. Qd1 {[%clk 00:07:19]}
{[%emt 00:01:22]} h5 {[%clk 00:06:55]} {[%emt 00:02:32]} 18. Nd5 {[%clk
00:06:28]} {[%emt 00:00:56]} Rc8 {[%clk 00:04:58]} {[%emt 00:02:02]} 19. c3
{[%clk 00:06:27]} {[%emt 00:00:06]} Nb5 {[%clk 00:04:37]} {[%emt 00:00:26]} 20.
Qa4 {[%clk 00:05:27]} {[%emt 00:01:05]} h4 {[%clk 00:03:47]} {[%emt 00:00:55]}
21. Bh2 {[%clk 00:05:26]} {[%emt 00:00:06]} g4 {[%clk 00:03:40]} {[%emt
00:00:12]} 22. hxg4 {[%clk 00:05:15]} {[%emt 00:00:16]} h3 {[%clk 00:01:52]}
{[%emt 00:01:53]} 23. gxh3 {[%clk 00:03:46]} {[%emt 00:01:34]} Rxh3 {[%clk
00:01:37]} {[%emt 00:00:20]} 24. Nf4 {[%clk 00:03:47]} {[%emt 00:00:04]} Rxh2
{[%clk 00:01:14]} {[%emt 00:00:28]} 25. Nxe6 {[%clk 00:03:35]} {[%emt
00:00:17]} fxe6 {[%clk 00:01:00]} {[%emt 00:00:19]} 26. Kxh2 {[%clk 00:03:37]}
{[%emt 00:00:03]} Kf7 {[%clk 00:00:58]} {[%emt 00:00:08]} 27. Kg3 {[%clk
00:02:58]} {[%emt 00:00:44]} d5 {[%clk 00:00:33]} {[%emt 00:00:29]} 28. f4
{[%clk 00:02:58]} {[%emt 00:00:04]} dxe4 {[%clk 00:00:33]} {[%emt 00:00:06]} 29.
Qc2 {[%clk 00:02:23]} {[%emt 00:00:40]} e3 {[%clk 00:00:32]} {[%emt 00:00:06]}
30. Ne4 {[%clk 00:02:19]} {[%emt 00:00:08]} Qd3 {[%clk 00:00:32]} {[%emt
00:00:06]} 31. Ng5+ {[%clk 00:01:45]} {[%emt 00:00:38]} Kf6 {[%clk 00:00:14]}
{[%emt 00:00:23]} 32. Qxd3 {[%clk 00:00:54]} {[%emt 00:00:57]} cxd3 {[%clk
00:00:18]} {[%emt 00:00:01]} 33. Rf3 {[%clk 00:00:42]} {[%emt 00:00:17]} d2
{[%clk 00:00:17]} {[%emt 00:00:06]} 34. Rxe3 {[%clk 00:00:43]} {[%emt
00:00:04]} Rd8 {[%clk 00:00:21]} {[%emt 00:00:01]} 35. Rd1 {[%clk 00:00:42]}
{[%emt 00:00:06]} e5 {[%clk 00:00:21]} {[%emt 00:00:06]} 36. Rxe5 {[%clk
00:00:21]} {[%emt 00:00:25]} Bh6 {[%clk 00:00:18]} {[%emt 00:00:08]} 37. Re6+
{[%clk 00:00:23]} {[%emt 00:00:03]} Kg7 {[%clk 00:00:22]} {[%emt 00:00:01]} 38.
Rxe7+ {[%clk 00:00:20]} {[%emt 00:00:08]} Kf6 {[%clk 00:00:23]} {[%emt
00:00:03]} 39. Re6+ {[%clk 00:00:24]} {[%emt 00:00:02]} Kg7 {[%clk 00:00:27]}
40. Re7+ {[%clk 00:00:19]} {[%emt 00:00:09]} Kf6 {[%clk 00:00:32]} {[%emt
00:00:01]} 41. Re5 {[%clk 00:00:21]} {[%emt 00:00:02]} Nc7 {[%clk 00:00:35]}
{[%emt 00:00:03]} 42. Nf3 {[%clk 00:00:15]} {[%emt 00:00:12]} Kf7 {[%clk
00:00:33]} {[%emt 00:00:06]} 43. Rxd2 {[%clk 00:00:16]} {[%emt 00:00:04]} Rg8
{[%clk 00:00:34]} {[%emt 00:00:04]} 44. Rf5+ {[%clk 00:00:19]} {[%emt
00:00:02]} Ke6 {[%clk 00:00:38]} 45. Re2+ {[%clk 00:00:21]} {[%emt 00:00:03]}
Kd6 {[%clk 00:00:42]} {[%emt 00:00:01]} 46. Rf6+ {[%clk 00:00:22]} {[%emt
00:00:05]} 1-0